Cogmind - Beta 13 @@@ ROGUE MODE // 2024.06.05 @ 19:46:02 Player: Johge Result: Core destroyed Performance ------------- Evolutions (1) 500 Regions Visited (3) 600 Robots Destroyed (42) 210 Value Destroyed (1219) 1219 Prototype IDs (1) 20 Alien Tech Used (0) 0 Bonus (0) 0 TOTAL SCORE: 2549 Bonus ------- None Cogmind --------- Core Integrity 0/400 Matter 215/300 Energy 115/160 System Corruption 3% Temperature Critical (505) Movement Core (550) Ox10 Location -9/Mines Parts ------- > --- POWER (1) -------- Light Nuclear Core > --- PROPULSION (4) --- (None) > --- UTILITY (2) ------ Large Storage Unit Sensor Array > --- WEAPON (2) ------- EM Pulse Gun Advanced Beam Cannon > --- INVENTORY (15) --- Ion Engine Ion Engine Ion Engine Improved Ion Engine Heat Sink Improved Heat Sink Medium Matter Pod (0) Visual Processing Unit EM Pulse Gun Particle Gun Grenade Launcher Mini Grenade Launcher Mining Laser Peak State ------------ > --- POWER ------------ Reinforced Ion Engine > --- PROPULSION ------- Aluminum Leg Aluminum Leg Aluminum Leg Aluminum Leg > --- UTILITY ---------- Large Storage Unit Sensor Array > --- WEAPON ----------- Spread Laser Advanced Beam Cannon > --- INVENTORY -------- Ion Engine Ion Engine Ion Engine Improved Ion Engine Aluminum Leg Heat Sink Visual Processing Unit Hardened Light Armor Plating EM Pulse Gun EM Pulse Gun Particle Gun Spread Laser Grenade Launcher Mini Grenade Launcher [Rating: 15] Favorites ----------- Power Light Ion Engine Engine Light Ion Engine Power Core Light Nuclear Core Propulsion Aluminum Leg Leg Aluminum Leg Utility Large Storage Unit Device Sensor Array Storage Large Storage Unit Protection Hardened Light Armor Plating Weapon Spread Laser Energy Gun Spread Laser Energy Cannon Advanced Beam Cannon Ballistic Gun Light Assault Rifle Launcher Mini Grenade Launcher Build | -11 -10 -9 -9 ------- Run | Yrd Mat Mat Min Slots Evolved 2 | . . 2 . Power . | . . . . Propulsion 2 | . . 2 . Utility . | . . . . Weapon . | . . . . Parts Attached 41 | 6 11 21 3 Power 7 | 1 2 4 . Engine 6 | 1 2 3 . Core 1 | . . 1 . Reactor . | . . . . Propulsion 13 | 2 4 7 . Treads . | . . . . Leg 13 | 2 4 7 . Wheel . | . . . . Hover . | . . . . Flight . | . . . . Utility 9 | 1 3 5 . Device 4 | . 2 2 . Storage 4 | 1 1 2 . Processor . | . . . . Hackware . | . . . . Protection 1 | . . 1 . Artifact . | . . . . Weapon 12 | 2 2 5 3 Energy Gun 8 | 1 2 3 2 Energy Cannon 2 | . . 1 1 Ballistic Gun 1 | 1 . . . Ballistic Cannon . | . . . . Launcher 1 | . . 1 . Special Weapon . | . . . . Impact Weapon . | . . . . Slashing Weapon . | . . . . Piercing Weapon . | . . . . Special Melee Weapon . | . . . . Unidentified Prototypes 1 | . . 1 . Parts Lost 13 | . 3 5 5 Power 1 | . 1 . . Propulsion 6 | . 1 2 3 Utility 2 | . . 2 . Weapon 4 | . 1 1 2 Highest Loss Streak 5 | . 2 2 5 To Critical Strikes . | . . . . Average Slot Usage (%) 95 | . 98 94 73 Engine 10 | . 13 9 . Core 1 | . . 1 11 Leg 35 | . 27 40 18 Device 10 | . 13 8 11 Storage 11 | . 14 11 11 Energy Gun 20 | . 21 20 20 Ballistic Gun 2 | . 7 . . Naked Turns . | . . . . Heaviest Build 41 | 11 22 41 32 Greatest Support 40 | 20 20 40 30 Greatest Overweight (x) 10 | . 1 1 10 Average Overweight (x) . | . . . 2 Largest Inventory Capacity 15 | 8 10 15 15 Average Capacity 13 | 7 9 14 15 Most Carried 15 | 5 10 15 15 Average Carried 10 | 1 7 12 13 Final Capacity 15 | 8 10 15 15 Final Carried 15 | 2 10 15 13 Class Distribution -------------------- 70% | Scavenger-Mutant 29% | Mutant Dominant Class ---------------- Mutant | -10/Materials Scavenger-Mutant | -9/Materials Mutant | -9/Mines Resources | -11 -10 -9 -9 ----------- Run | Yrd Mat Mat Min Matter Collected 689 | 184 201 304 . Remotely . | . . . . Salvage Created 1146 | . 397 655 94 Parts 82 | . 26 55 1 Haulers Intercepted . | . . . . Recyclers Shooed 3 | . . 3 . Parts Field Recycled . | . . . . Retrieved Matter . | . . . . Parts Self-Destructed . | . . . . Prevented . | . . . . Kills | -11 -10 -9 -9 ------- Run | Yrd Mat Mat Min Combat Hostiles Destroyed 37 | . 13 22 2 Guns 34 | . 13 20 1 Cannons 1 | . . . 1 AOE 2 | . . 2 . Classes Destroyed 5 | . 3 2 . Watcher 5 | . 2 3 . Swarmer 10 | . 3 7 . Grunt 22 | . 10 10 2 Brawler 1 | . . 1 . Sentry 4 | . . 4 . Best Kill Streak 6 | . 5 6 1 Combat Bots Only 5 | . 4 5 1 Max Kills in Single Turn 2 | . 1 2 1 Gunslinging 1 | . . 1 . Exploded 2 | . . 2 . Melee . | . . . . Uniques/NPCs Destroyed . | . . . . Combat | -11 -10 -9 -9 -------- Run | Yrd Mat Mat Min Hostile Shots Fired 197 | . 80 87 30 Missed 43 | . 19 19 5 Damage Taken 2145 | . 767 938 440 Core 646 | . 212 261 173 Absorbed by Shields . | . . . . Core Remaining (%) 57 | 100 15 . . Volleys Fired 104 | . 45 45 14 Largest 2 | . 2 2 2 Hottest 130 | . 130 130 130 Shots Fired 196 | . 88 84 24 Gun 192 | . 88 83 21 Cannon 3 | . . . 3 Launcher 1 | . . 1 . Special . | . . . . Kinetic 32 | . 32 . . Thermal 154 | . 56 83 15 Explosive 1 | . . 1 . Electromagnetic 9 | . . . 9 Robot Hit Streak 9 | . 8 9 5 Robot Miss Streak 13 | . 7 13 4 Penetration Max . | . . . . Secondary Targets 11 | . 3 7 1 Max Gunslinging Chain 1 | . 1 1 1 Shots Hit Robots 156 | . 61 77 18 Core Hits 182 | . 65 107 10 Critical Kills . | . . . . Critical Parts Destroyed . | . . . . Critical Strikes 4 | . 3 . 1 Burn 3 | . 3 . . Corrupt 1 | . . . 1 Melee Attacks . | . . . . Impact . | . . . . Slashing . | . . . . Piercing . | . . . . Sneak Attacks . | . . . . Combat Hostiles . | . . . . Follow-up Attacks . | . . . . Damage Inflicted 2062 | . 743 1066 253 Guns 1906 | . 738 956 212 Cannons 41 | . . . 41 Explosions 74 | . . 74 . Melee . | . . . . Ramming 41 | . 5 36 . Kinetic 149 | . 149 . . Thermal 1696 | . 589 956 151 Explosive 74 | . . 74 . Electromagnetic 102 | . . . 102 Impact . | . . . . Slashing . | . . . . Piercing . | . . . . Highest Corruption 3 | . 3 3 3 Average Corruption 2 | . 2 3 3 Corruption Purged . | . . . . Corruption Blocked . | . . . . Effects 17 | . 4 13 . Message Errors 6 | . 2 4 . Matter Fused 6 | . . 6 . Energy Discharges 1 | . . 1 . Data Loss (minor) 2 | . 1 1 . Data Loss (major) 1 | . 1 . . Weapon Failures 1 | . . 1 . Overload Shots . | . . . . Overflow Damage . | . . . . Projectiles . | . . . . Explosions . | . . . . Melee . | . . . . Knockbacks . | . . . . Impact . | . . . . Kinetic . | . . . . Secondary . | . . . . Self-Inflicted Damage . | . . . . Shots . | . . . . Rammed . | . . . . Targets Rammed 8 | . 2 6 . Kicked 8 | . 2 6 . Crushed . | . . . . Highest Temperature 717 | . 165 717 561 Average Temperature 199 | . 46 248 331 Received Heat Transfer 819 | . 378 249 192 Effects 48 | . . 38 10 Shutdowns 10 | . . 9 1 Energy Bleed 3 | . . 2 1 Interference 9 | . . 6 3 Matter Decay 3 | . . 3 . Short Circuit 4 | . . 3 1 Damage (minor) 5 | . . 3 2 Damage (major) 10 | . . 10 . Damage (core) 4 | . . 2 2 Siege Activations . | . . . . Robots Corrupted . | . . . . Combat Hostiles . | . . . . Parts Fried . | . . . . Impact Corruptions . | . . . . Robots Melted . | . . . . Combat Hostiles . | . . . . Parts Melted 2 | . 2 . . Heat Transferred 2541 | . 1101 1185 255 Parts Sabotaged . | . . . . Parts Stolen . | . . . . Parts Stripped . | . . . . Power Chain Reactions . | . . . . Alert | -11 -10 -9 -9 ------- Run | Yrd Mat Mat Min Peak Influence 309 | . 309 299 30 Initial 58 | . . 58 28 Average 133 | . 137 144 20 Maximum Alert Level 1 | . 1 1 . Low Security (%) 76 | 100 77 73 100 Level 1 23 | . 22 26 . Level 2 . | . . . . Level 3 . | . . . . Level 4 . | . . . . Level 5 . | . . . . High Security . | . . . . Max Security . | . . . . Squads Dispatched 4 | . 3 1 . Investigation 2 | . 2 . . Extermination . | . . . . Reinforcement 2 | . 1 1 . Assault . | . . . . Garrison . | . . . . Intercept . | . . . . Searches Triggered . | . . . . Construction Impeded . | . . . . Haulers Reinforced . | . . . . Active Scanning Responses . | . . . . Cargo Convoy Interrupts . | . . . . Stealth | -11 -10 -9 -9 --------- Run | Yrd Mat Mat Min Distress Signals 4 | . 3 1 . Communications Jammed . | . . . . Distress Signals . | . . . . Times Spotted 52 | . 18 32 2 Peak Tracking Total 6 | . 6 6 2 Tactical Retreats 4 | . 1 3 . Traps | -11 -10 -9 -9 ------- Run | Yrd Mat Mat Min Traps Triggered 5 | . 5 . . Indirectly . | . . . . Trap Hack Attempts . | . . . . Triggered . | . . . . Disarmed . | . . . . Reprogrammed . | . . . . Reused . | . . . . Traps Extracted . | . . . . Installed . | . . . . Triggered . | . . . . Machines | -11 -10 -9 -9 ---------- Run | Yrd Mat Mat Min Machines Disabled 1 | . . 1 . Max in Single Turn 1 | . . 1 . Machines Repaired . | . . . . Machines Dismantled . | . . . . Machines Sabotaged . | . . . . Overloaded Fab Kills . | . . . . Hacking | -11 -10 -9 -9 --------- Run | Yrd Mat Mat Min Machines Accessed 6 | . 2 4 . Terminals 6 | . 2 4 . Fabricators . | . . . . Repair Stations . | . . . . Recycling Units . | . . . . Scanalyzers . | . . . . Garrison Access . | . . . . Total Hacks 20 | . 8 12 . Successful 10 | . 3 7 . Failed 10 | . 5 5 . Catastrophic 4 | . 3 1 . Database Lockouts . | . . . . Manual 11 | . 4 7 . Terminals 20 | . 8 12 . Fabricators . | . . . . Repair Stations . | . . . . Recycling Units . | . . . . Scanalyzers . | . . . . Garrison Access . | . . . . Terminal Hacks 10 | . 3 7 . Alert Level 7 | . 2 5 . Unreport Threat 2 | . . 2 . Locate Traps 1 | . 1 . . Fabricator Hacks . | . . . . Repair Station Hacks . | . . . . Recycling Unit Hacks . | . . . . Scanalyzer . | . . . . Garrison Access Hacks . | . . . . Unauthorized Hacks . | . . . . Terminals . | . . . . Fabricators . | . . . . Repair Stations . | . . . . Recycling Units . | . . . . Scanalyzers . | . . . . Garrison Access . | . . . . Data Cores Recovered . | . . . . Used . | . . . . Hacking Detections 4 | . 2 2 . Full Trace Events 1 | . 1 . . Feedback Events . | . . . . Feedback Blocked . | . . . . Robot Schematics Acquired . | . . . . Robots Built . | . . . . Authchips . | . . . . Time . | . . . . Total Robot Build Rating . | . . . . Part Schematics Acquired . | . . . . Parts Built . | . . . . Authchips . | . . . . Time . | . . . . Total Part Build Rating . | . . . . Parts Repaired . | . . . . Time . | . . . . Parts Recycled . | . . . . Recycled Matter . | . . . . Retrieved Matter . | . . . . Retrieved Components . | . . . . Parts Scanalyzed . | . . . . Part Schematics Acquired . | . . . . Parts Damaged . | . . . . Bothacking | -11 -10 -9 -9 ------------ Run | Yrd Mat Mat Min Used RIF Installer . | . . . . Robots Hacked . | . . . . Non-combat . | . . . . Combat . | . . . . Robot Hacks Applied . | . . . . Relay Couplers Released . | . . . . Fabnet Peak Effective % . | . . . . Robots Rewired . | . . . . Allies Hacked . | . . . . Hacks Repelled . | . . . . Allies | -11 -10 -9 -9 -------- Run | Yrd Mat Mat Min Total Allies . | . . . . Largest Group . | . . . . Highest-Rated Group . | . . . . Highest-Rated Ally . | . . . . Total Orders . | . . . . Ally Attacks . | . . . . Total Damage . | . . . . Kills . | . . . . Allies Corrupted . | . . . . Allies Melted . | . . . . Intel | -11 -10 -9 -9 ------- Run | Yrd Mat Mat Min Robot Analysis Total . | . . . . Derelict Logs Recovered . | . . . . Drone Launches . | . . . . Drone Recoveries . | . . . . Exploration | -11 -10 -9 -9 ------------- Run | Yrd Mat Mat Min Turns Passed 1629 | 56 502 1015 56 Spaces Moved 793 | 40 247 499 7 Core 8 | 7 . . 1 Treads . | . . . . Legs 785 | 33 247 499 6 Wheels . | . . . . Hover . | . . . . Flight . | . . . . Fastest Speed 50 | 50 120 120 190 Average Speed 132 | 107 133 131 241 Slowest Speed 550 | 120 190 190 550 Overloaded Moves . | . . . . Propulsion Burnouts . | . . . . Robots Hopped . | . . . . Cave-ins Triggered . | . . . . Exploration Rate (%) 22 | 4 38 44 5 Regions Visited 3 Branch Regions 1 Pre-discovered Areas . | . . . . Known Exits Taken . | . . . . Unknown Exits Taken 3 | 1 1 1 . Scrap Searched . | . . . . Spaces Dug . | . . . . Terrain Destroyed 11 | . . 11 . Melee . | . . . . Projectile . | . . . . AOE 11 | . . 11 . Terrain Rammed . | . . . . Walls Destroyed . | . . . . Machines Disabled . | . . . . Actions | -11 -10 -9 -9 --------- Run | Yrd Mat Mat Min Total 1186 | 53 337 770 26 Wait 183 | . 9 172 2 Move 790 | 39 246 498 7 Hop . | . . . . Pick Up 45 | 8 18 19 . Fast Attach . | . . . . Attach 21 | 6 4 9 2 Detach 1 | . . 1 . Swap 20 | . 7 12 1 Drop 14 | . 6 8 . Fire 104 | . 45 45 14 Melee . | . . . . Ram . | . . . . Kick 8 | . 2 6 . Crush . | . . . . Escape Stasis . | . . . . Rewire . | . . . . Trap . | . . . . Miscellaneous . | . . . . Route ------- -11/Scrapyard -10/Materials -9/Materials -9/Mines History --------- Turn | Location | Event 7 | -11/Scrapyard | Discovered new exit (range 16) 57 | -11/Scrapyard | Entered Materials 298 | -10/Materials | Core integrity fell below 50% 344 | -10/Materials | Build established: Mutant 425 | -10/Materials | Discovered new exit (range 15) 451 | -10/Materials | Core integrity fell below 20% 559 | -10/Materials | Entered another Materials area 559 | -9/Materials | Evolved 2 slots: Propulsion x2 744 | -9/Materials | Build established: Scavenger-Mutant 1259 | -9/Materials | Core integrity fell below 50% 1542 | -9/Materials | Discovered new exit (range 12) 1574 | -9/Materials | Entered Mines 1621 | -9/Mines | Core integrity fell below 20% 1631 | -9/Mines | Core destroyed Last Messages --------------- G-34 Mercenary IFF system glitched. T-07 Excavator is excavating. Overheating: System interference. Particle Gun temporarily disabled. Sensor Array temporarily disabled. Overheating: Energy bleed (-39). Overheating: Core damaged (-48). T-07 Excavator is excavating. Power failure, Lgt. Nuclear Core shutdown. Overheating: Aluminum Leg damaged (-4). EM Pulse Gun broken. Overheating: Short circuit. T-07 Excavator is excavating. Overheating: Aluminum Leg damaged (-5). Aluminum Leg destroyed. G-34 Mercenary destroyed. Overheating: System interference. Adv. Beam Cannon temporarily disabled. T-07 Excavator is excavating. Overheating: Core damaged (-80). Map ----- +----------------------------------------------------+ | ????????????????????????????????????????????? | | ????????????????????????????????????????????? | | ????????????????????????????????????????????? | | ????????????????????????????????????????????? | | ????????????????????????????????????????????? | | ????????????????????????????????????????????? | | ????????????????????????????????????????????? | | ????????????????????????????????????????????? | | ????????????????????????????????????????????? | | ????????????????????????????????????????????? | | ????????????????????????????????????????????? | | ????????????????????????????????????????????? | | ????????????????????????????????????????????? | | ????????????????????????????????????????????? | | ????????????????????????????????????????????? | | ????????????????????????????????????????????? | | ????????????????????????????????????????????? | | ????????????????????????????????????????????? | | ????????????????????????????????####????????? | | ???????????????????#??????????## ##???????? | | ??????????????????## ????????# ????????? | | ??????????? ####### ??????? ??????????? | | ???????????$ #?????# #???????????? | | ???????????? ##### #?#?##???????? | | ????????????????# =% # #???????? | | ????????????????# %@ t #???????? | | ?????????????????# ## #????????? | | ?????????????????##?????### ## #???????? | | ??????????????????????????#####?????#???????? | | ????????????????????????????????????????????? | | ????????????????????????????????????????????? | | ????????????????????????????????????????????? | | ????????????????????????????????????????????? | | | | | | | | | | | | | | | | | | | | | | | | | | | | | | | | | | | +----------------------------------------------------+ Best States ------------- Heat Dissipation 42 Energy Generation 14 Energy Capacity 265 Matter Stores 300 Matter Capacity 300 Sight Range 16 Robot Scan Range 14 Terrain Scan Density 10 Armor Coverage 150 Evasion (%) 55 Item Schematics ----------------- None Robot Schematics ------------------ None Fabricated ------------ Nothing Alien Tech Used ----------------- None Achievements -------------- root@ Challenges ------------ None Game ------ Seed TripodDirtySuite Manual? 0 Play Time 00:17:57 Cumulative 15.7 hours Start 2024.06.05 @ 19:27:54 End 2024.06.05 @ 19:46:02 Sessions 1 Manual Loads 0 Difficulty Rogue Special Mode None Game No. 28 Rogue 28 Adventurer 0 Explorer 0 Win Type - Total 0 Types 0/0/0/0/0/0/0/0/0 Lore% 8 Gallery% 19 Achievement% 15 Wizard Run 0 Options --------- Layout 1 ASCII 0 Keyboard 0 Movement Mouse Keybinds 0 Fullscreen 1 Font 24/Smallcaps Map View 50x35 Zoom Use 0% Tactical HUD 0 Map Filters NONE Filters NONE Steam 1 RUN: babb0b7f-2ecf-440d-bd97-de1eeb699994